Cogmind - Beta 15 @@@ ROGUE MODE // 2025.06.19 @ 17:27:25 Player: Peregrine Result: Destroyed by H-66 Slayer with Gauss Rifle Performance ------------- Evolutions (1) 500 Regions Visited (5) 1000 Robots Destroyed (36) 180 Value Destroyed (774) 774 Prototype IDs (5) 100 Alien Tech Used (0) 0 Bonus (1159) 1159 TOTAL SCORE: 3713 Bonus ------- Follower Combat Kills 559 Met Imprinter 300 Was Imprinted 300 Cogmind --------- Core Integrity 0/400 Matter 300/300 Energy 100/100 System Corruption 0% Temperature Cool (0) Movement Walking (120) Location -6/Proximity Caves Parts ------- > --- POWER (1) -------- (None) > --- PROPULSION (2) --- Carbon-fiber Leg > --- UTILITY (4) ------ Small Storage Unit Hacking Suite Makeshift System Shield > --- WEAPON (2) ------- CR-A16's Pointy Stick > --- INVENTORY (8) ---- Mobile Refinery Mk. CCLXVII Hacking Drone Bay (1/1) Storm Laser Peak State ------------ > --- POWER ------------ Improved Deuterium Engine > --- PROPULSION ------- Carbon-fiber Leg Makeshift Leg > --- UTILITY ---------- Small Storage Unit Hacking Suite Makeshift System Shield Hacking Drone Bay > --- WEAPON ----------- Wave Gun Barrage Gun > --- INVENTORY -------- Aluminum Leg 0b10 Decoder Chip [Scout] Mobile Refinery Mk. CCLXVII Storm Laser CR-A16's Pointy Stick [Rating: 41] Favorites ----------- Power Improved Deuterium Engine Engine Improved Deuterium Engine Propulsion Improved Aluminum Leg Leg Improved Aluminum Leg Utility Small Storage Unit Device Hacking Drone Bay Storage Small Storage Unit Processor 0b10 Decoder Chip [Scout] Hackware Hacking Suite Protection Light Armor Plating Weapon Barrage Gun Energy Gun Wave Gun Energy Cannon Particle Cannon Ballistic Gun Barrage Gun Piercing Weapon CR-A16's Pointy Stick Build | -11 -10 -9 -9 -7 -6 ------- Run | Yrd Mat Mat Min Zio Pro Slots Evolved 2 | . . 2 . . . Power . | . . . . . . Propulsion . | . . . . . . Utility 2 | . . 2 . . . Weapon . | . . . . . . Parts Attached 40 | . 6 13 3 10 8 Power 6 | . 1 2 2 1 . Engine 6 | . 1 2 2 1 . Core . | . . . . . . Reactor . | . . . . . . Propulsion 12 | . 3 3 . 1 5 Treads . | . . . . . . Leg 12 | . 3 3 . 1 5 Wheel . | . . . . . . Hover . | . . . . . . Flight . | . . . . . . Utility 12 | . 1 4 1 5 1 Device 5 | . . 2 . 3 . Storage . | . . . . . . Processor 2 | . 1 . . . 1 Hackware 2 | . . 1 . 1 . Protection 3 | . . 1 1 1 . Artifact . | . . . . . . Weapon 10 | . 1 4 . 3 2 Energy Gun 2 | . 1 . . 1 . Energy Cannon 3 | . . 3 . . . Ballistic Gun 4 | . . 1 . 2 1 Ballistic Cannon . | . . . . . . Launcher . | . . . . . . Special Weapon . | . . . . . . Impact Weapon . | . . . . . . Slashing Weapon . | . . . . . . Piercing Weapon 1 | . . . . . 1 Special Melee Weapon . | . . . . . . Unidentified Prototypes 3 | . . 1 . 2 . Parts Lost 10 | . . 2 . . 8 Power 2 | . . 1 . . 1 Propulsion 4 | . . . . . 4 Utility 2 | . . 1 . . 1 Weapon 2 | . . . . . 2 Highest Loss Streak 5 | . . 2 . . 5 To Critical Strikes . | . . . . . . Average Backups 6 | 6 7 8 8 5 4 Power . | 1 1 1 1 . . Propulsion 3 | 4 5 6 6 2 . Utility 1 | . . . . 1 1 Weapon 1 | 1 1 1 1 1 1 Tool/Special . | . . . . . . Unused Backups 3 | . 1 . . . 2 Power . | . . . . . . Propulsion 2 | . 1 . . . 1 Utility . | . . . . . . Weapon 1 | . . . . . 1 Tool/Special . | . . . . . . Average Slot Usage (%) 97 | . 93 95 88 98 96 Engine 10 | . 14 10 11 11 9 Leg 22 | . 28 21 22 22 20 Device 9 | . . 8 11 11 1 Storage 11 | . 14 11 11 11 11 Processor 1 | . 7 3 . . 9 Hackware 17 | . . 8 11 20 22 Protection 1 | . . 7 . . . Energy Gun 5 | . 9 4 . 5 9 Energy Cannon 3 | . . 9 11 1 . Ballistic Gun 13 | . 18 7 11 14 9 Peak Build Rating 41 | 6 7 18 17 39 41 Average Rating 29 | 6 6 14 15 34 36 On Entrance 15 | 6 6 7 15 17 39 Naked Turns . | . . . . . . Heaviest Build 24 | 11 13 24 22 24 24 Greatest Support 35 | 20 20 23 23 33 35 Greatest Overweight (x) 2 | . . 2 . 1 2 Average Overweight (x) . | . . . . . . Largest Inventory Capacity 8 | 8 8 8 8 8 8 Average Capacity 8 | 8 8 8 8 8 8 Most Carried 8 | 6 8 8 8 8 8 Average Carried 7 | 6 7 7 8 7 7 Final Capacity 8 | 8 8 8 8 8 8 Final Carried 8 | 6 8 8 8 8 6 Class Distribution -------------------- 36% | Hacker-Mutant 30% | Scavenger-Mutant 28% | Derelict-Mutant 3% | Mutant Dominant Class ---------------- Mutant | -10/Materials Scavenger-Mutant | -9/Materials Scavenger-Mutant | -9/Mines Hacker-Mutant | -7/Zion Derelict-Mutant | -6/Proximity Caves Resources | -11 -10 -9 -9 -7 -6 ----------- Run | Yrd Mat Mat Min Zio Pro Matter Collected 940 | 200 150 298 59 134 99 Remotely . | . . . . . . Salvage Created 1264 | . 378 578 50 97 161 Parts 87 | . 32 42 3 2 8 Haulers Intercepted 4 | . 2 2 . . . Recyclers Shooed 2 | . 2 . . . . Parts Field Recycled . | . . . . . . Retrieved Matter . | . . . . . . Parts Self-Destructed 16 | . . . . 2 14 Prevented 4 | . . . . . 4 Kills | -11 -10 -9 -9 -7 -6 ------- Run | Yrd Mat Mat Min Zio Pro Combat Hostiles Destroyed 28 | . 8 14 2 . 4 Melee 1 | . . . . . 1 Guns 19 | . 8 8 . . 3 Cannons 8 | . . 6 2 . . Classes Destroyed 9 | . 4 4 . . 1 Builder 1 | . 1 . . . . Tunneler 2 | . . 1 1 . . Hauler 4 | . 2 2 . . . Operator 1 | . . 1 . . . Drone 1 | . . . . . 1 Swarmer 12 | . 3 6 2 . 1 Grunt 12 | . 5 6 . . 1 Duelist 1 | . . 1 . . . Sentry 1 | . . 1 . . . Thug 1 | . . . . . 1 Best Kill Streak 6 | . 4 6 2 . 1 Combat Bots Only 5 | . 3 5 2 . 1 Max Kills in Single Turn 2 | . 1 2 1 . 1 Gunslinging 1 | . . 1 . . . Exploded . | . . . . . . Melee 1 | . . . . . 1 Uniques/NPCs Destroyed . | . . . . . . Combat | -11 -10 -9 -9 -7 -6 -------- Run | Yrd Mat Mat Min Zio Pro Hostile Shots Fired 190 | . 41 47 27 . 75 Missed 46 | . 13 8 5 . 20 Hits 144 | . 28 39 22 . 55 Melee 5 | . . 4 . . 1 Projectile 139 | . 28 35 22 . 54 Critical Strikes 5 | . . 2 . . 3 Damage Taken 2076 | . 287 492 180 . 1117 Core 474 | . 58 82 22 . 312 Absorbed by Shields . | . . . . . . Core Remaining (%) 88 | 100 76 . . . . Volleys Fired 126 | . 36 53 13 6 18 Largest 2 | . 2 2 2 2 2 Hottest 136 | . 60 136 88 109 114 Shots Fired 246 | . 71 105 26 12 32 Gun 201 | . 71 73 13 12 32 Cannon 45 | . . 32 13 . . Launcher . | . . . . . . Special . | . . . . . . Kinetic 127 | . 48 46 13 6 14 Thermal 119 | . 23 59 13 6 18 Explosive . | . . . . . . Electromagnetic . | . . . . . . Robot Hit Streak 12 | . 12 12 10 1 7 Robot Miss Streak 4 | . 4 3 2 3 3 Penetration Max . | . . . . . . Secondary Targets 2 | . 1 1 . . . Max Gunslinging Chain 1 | . 1 1 . . . Shots Hit Robots 154 | . 41 64 18 2 29 Core Hits 59 | . 19 25 3 2 10 Critical Kills . | . . . . . . Critical Parts Destroyed . | . . . . . . Critical Strikes . | . . . . . . Melee Attacks 12 | . . . . . 12 Impact . | . . . . . . Slashing . | . . . . . . Piercing 12 | . . . . . 12 Sneak Attacks . | . . . . . . Combat Hostiles . | . . . . . . Follow-up Attacks . | . . . . . . Damage Inflicted 2499 | . 532 912 293 38 724 Guns 1812 | . 532 604 108 38 530 Cannons 493 | . . 308 185 . . Explosions . | . . . . . . Melee 194 | . . . . . 194 Ramming . | . . . . . . Kinetic 1129 | . 389 404 108 38 190 Thermal 1176 | . 143 508 185 . 340 Explosive . | . . . . . . Electromagnetic . | . . . . . . Impact . | . . . . . . Slashing . | . . . . . . Piercing 194 | . . . . . 194 Highest Corruption . | . . . . . . Average Corruption . | . . . . . . Corruption Purged . | . . . . . . Corruption Blocked . | . . . . . . Overload Shots . | . . . . . . Overflow Damage 33 | . . 11 22 . . Projectiles 33 | . . 11 22 . . Explosions . | . . . . . . Melee . | . . . . . . Knockbacks . | . . . . . . Impact . | . . . . . . Kinetic . | . . . . . . Secondary . | . . . . . . Self-Inflicted Damage . | . . . . . . Shots . | . . . . . . Rammed . | . . . . . . Targets Rammed . | . . . . . . Kicked . | . . . . . . Crushed . | . . . . . . Highest Temperature 336 | . 64 234 126 177 336 Average Temperature 63 | . 36 45 44 77 111 Received Heat Transfer 612 | . 120 129 . . 363 Effects 1 | . . . . . 1 Interference 1 | . . . . . 1 Siege Activations . | . . . . . . Martial Activations . | . . . . . . Shielding Activations . | . . . . . . Robots Disrupted . | . . . . . . Combat Hostiles . | . . . . . . Robots Corrupted . | . . . . . . Combat Hostiles . | . . . . . . Parts Fried . | . . . . . . Impact Corruptions . | . . . . . . Robots Melted . | . . . . . . Combat Hostiles . | . . . . . . Parts Melted 3 | . 1 . 1 . 1 Heat Transferred 2181 | . 325 1005 333 . 518 Parts Sabotaged . | . . . . . . Parts Stolen . | . . . . . . Parts Stripped . | . . . . . . Power Chain Reactions . | . . . . . . Alert | -11 -10 -9 -9 -7 -6 ------- Run | Yrd Mat Mat Min Zio Pro Maximum Alert Level . | . . . . . . Low Security (%) 100 | 100 100 100 100 . . Level 1 . | . . . . . . Level 2 . | . . . . . . Level 3 . | . . . . . . Level 4 . | . . . . . . Level 5 . | . . . . . . High Security . | . . . . . . Max Security . | . . . . . . Peak Influence 179 | . 104 179 122 . . Initial 67 | . . 39 67 . . Average 57 | . 61 50 86 . . Influence Increases 1152 | . 214 442 70 11 415 Destroy 0b10 Robot/C 740 | . 160 280 40 . 260 Destroy 0b10 Robot/NC 60 | . 15 20 5 10 10 Destroy Leader 128 | . 34 64 10 . 20 Allied During Kill 96 | . . . . 1 95 Successful Hack 22 | . 5 17 . . . Select Force Hacks 30 | . . 30 . . . Disable Machine 15 | . . . 15 . . Destroy Structure 1 | . . 1 . . . Lose Combat Pursuer 60 | . . 30 . . 30 Influence Decreases 1016 | . 120 363 196 58 279 Entered New Map 208 | . . 55 106 47 . Time Decay 678 | . 120 288 90 11 169 Lost Part 90 | . . 20 . . 70 Lost Ally 40 | . . . . . 40 Squads Dispatched 6 | . 2 3 . . 1 Investigation 3 | . 1 2 . . . Extermination . | . . . . . . Reinforcement 2 | . 1 1 . . . Assault 1 | . . . . . 1 Garrison . | . . . . . . Intercept . | . . . . . . Searches Triggered . | . . . . . . Construction Impeded . | . . . . . . Haulers Reinforced . | . . . . . . Active Scanning Responses . | . . . . . . Cargo Convoy Interrupts . | . . . . . . Stealth | -11 -10 -9 -9 -7 -6 --------- Run | Yrd Mat Mat Min Zio Pro Distress Signals 1 | . . 1 . . . Communications Jammed . | . . . . . . Distress Signals . | . . . . . . Times Spotted 57 | . 12 21 3 . 21 Peak Tracking Total 7 | . 4 7 3 . 7 Tactical Retreats 3 | . . 2 . . 1 Traps | -11 -10 -9 -9 -7 -6 ------- Run | Yrd Mat Mat Min Zio Pro Traps Triggered 1 | . 1 . . . . Indirectly . | . . . . . . Trap Hack Attempts . | . . . . . . Triggered . | . . . . . . Disarmed . | . . . . . . Reprogrammed . | . . . . . . Reused . | . . . . . . Traps Extracted . | . . . . . . Installed . | . . . . . . Triggered . | . . . . . . Machines | -11 -10 -9 -9 -7 -6 ---------- Run | Yrd Mat Mat Min Zio Pro Machines Disabled 2 | . . . 1 . 1 Max in Single Turn 1 | . . . 1 . . Machines Repaired . | . . . . . . Machines Dismantled . | . . . . . . Machines Sabotaged . | . . . . . . Overloaded Fab Kills . | . . . . . . Hacking | -11 -10 -9 -9 -7 -6 --------- Run | Yrd Mat Mat Min Zio Pro Machines Accessed 8 | . 2 6 . . . Terminals 6 | . 2 4 . . . Fabricators . | . . . . . . Repair Stations 1 | . . 1 . . . Recycling Units . | . . . . . . Scanalyzers 1 | . . 1 . . . Garrison Access . | . . . . . . Total Hacks 23 | . 5 18 . . . Successful 13 | . 2 11 . . . Failed 10 | . 3 7 . . . Catastrophic 1 | . 1 . . . . Database Lockouts . | . . . . . . Manual 19 | . 1 12 . 6 . Terminals 17 | . 5 12 . . . Fabricators . | . . . . . . Repair Stations 2 | . . 2 . . . Recycling Units . | . . . . . . Scanalyzers 4 | . . 4 . . . Garrison Access . | . . . . . . Terminal Hacks 6 | . 2 4 . . . Robot Analysis 1 | . 1 . . . . Prototype ID Bank 1 | . . 1 . . . Recall Investigation 1 | . . 1 . . . Recall Reinforcements 1 | . . 1 . . . Hauler Manifests 1 | . 1 . . . . Zone Layout 1 | . . 1 . . . Fabricator Hacks . | . . . . . . Repair Station Hacks . | . . . . . . Recycling Unit Hacks . | . . . . . . Scanalyzer 3 | . . 3 . . . Insert Component 1 | . . 1 . . . Analyze 2 | . . 2 . . . Garrison Access Hacks . | . . . . . . Unauthorized Hacks 4 | . . 4 . . . Terminals 2 | . . 2 . . . Botnet 2 | . . 2 . . . Fabricators . | . . . . . . Repair Stations 1 | . . 1 . . . Mechanics 1 | . . 1 . . . Recycling Units . | . . . . . . Scanalyzers 1 | . . 1 . . . Extract 1 | . . 1 . . . Garrison Access . | . . . . . . Data Cores Recovered . | . . . . . . Used . | . . . . . . Hacking Detections 7 | . 2 5 . . . Full Trace Events 1 | . . 1 . . . Feedback Events . | . . . . . . Feedback Blocked . | . . . . . . Robot Schematics Acquired 2 | . . . . 2 . Robots Built . | . . . . . . Authchips . | . . . . . . Time . | . . . . . . Total Robot Build Rating . | . . . . . . Part Schematics Acquired 18 | . . 3 . 15 . Parts Built . | . . . . . . Authchips . | . . . . . . Time . | . . . . . . Total Part Build Rating . | . . . . . . Parts Repaired . | . . . . . . Time . | . . . . . . Parts Recycled . | . . . . . . Recycled Matter . | . . . . . . Retrieved Matter . | . . . . . . Retrieved Components . | . . . . . . Parts Scanalyzed 1 | . . 1 . . . Part Schematics Acquired 1 | . . 1 . . . Parts Damaged . | . . . . . . Bothacking | -11 -10 -9 -9 -7 -6 ------------ Run | Yrd Mat Mat Min Zio Pro Used RIF Installer . | . . . . . . Robots Hacked . | . . . . . . Non-combat . | . . . . . . Combat . | . . . . . . Robot Hacks Applied . | . . . . . . Relay Couplers Released . | . . . . . . Fabnet Peak Effective % . | . . . . . . Robots Rewired 2 | . . . . . 2 Allies Hacked . | . . . . . . Hacks Repelled . | . . . . . . Allies | -11 -10 -9 -9 -7 -6 -------- Run | Yrd Mat Mat Min Zio Pro Total Allies 6 | . . . . 4 2 Largest Group 5 | . . . . 4 5 Highest-Rated Group 170 | . . . . 150 170 Highest-Rated Ally 38 | . . . . 38 38 Total Orders . | . . . . . . Ally Attacks 55 | . . . . . 55 Total Damage 2031 | . . . . . 2031 Kills 18 | . . . . . 18 Allies Corrupted . | . . . . . . Allies Melted . | . . . . . . Intel | -11 -10 -9 -9 -7 -6 ------- Run | Yrd Mat Mat Min Zio Pro Active Infowar (turns) 2458 | . 146 856 195 803 458 Terrain 1574 | . . 576 195 803 . Decoding 458 | . . . . . 458 T.N.C. 426 | . 146 280 . . . Robot Analysis Total 1 | . 1 . . . . Derelict Logs Recovered 1 | . . . . 1 . Drone Launches . | . . . . . . Drone Recoveries . | . . . . . . Exploration | -11 -10 -9 -9 -7 -6 ------------- Run | Yrd Mat Mat Min Zio Pro Turns Passed 5766 | 5 252 857 195 3851 606 Spaces Moved 3522 | 5 107 421 127 2519 343 Core 1 | . . . . . 1 Treads . | . . . . . . Legs 3521 | 5 107 421 127 2519 342 Wheels . | . . . . . . Hover . | . . . . . . Flight . | . . . . . . Fastest Speed 120 | 120 120 120 120 120 120 Average Speed 130 | 120 120 150 120 127 129 Slowest Speed 260 | 120 120 260 120 190 210 Overloaded Moves . | . . . . . . Propulsion Burnouts . | . . . . . . Robots Hopped . | . . . . . . Potential Cave-ins . | . . . . . . Cave-ins Triggered . | . . . . . . Exploration Rate (%) 37 | 2 25 38 17 92 48 Regions Visited 5 Branch Regions 3 Pre-discovered Areas 1 | . . . . 1 . Known Exits Taken . | . . . . . . Unknown Exits Taken 5 | 1 1 1 1 1 . Scrap Searched 5 | . . . 1 3 1 Spaces Dug . | . . . . . . Terrain Destroyed . | . . . . . . Melee . | . . . . . . Projectile . | . . . . . . AOE . | . . . . . . Terrain Rammed . | . . . . . . Walls Destroyed . | . . . . . . Machines Disabled . | . . . . . . Actions | -11 -10 -9 -9 -7 -6 --------- Run | Yrd Mat Mat Min Zio Pro Total 4447 | 4 163 539 143 3142 456 Wait 696 | . 9 40 . 583 64 Move 3517 | 4 106 420 126 2518 343 Hop . | . . . . . . Pick Up 14 | . 2 2 . 7 3 Fast Attach 18 | . 2 9 1 3 3 Attach 5 | . . 1 . 1 3 Detach 3 | . . . . 3 . Swap 18 | . 4 4 2 6 2 Drop 35 | . 4 10 1 15 5 Fire 126 | . 36 53 13 6 18 Melee 12 | . . . . . 12 Ram . | . . . . . . Kick . | . . . . . . Crush . | . . . . . . Escape Stasis . | . . . . . . Rewire 3 | . . . . . 3 Trap . | . . . . . . Miscellaneous . | . . . . . . Route ------- -11/Scrapyard -10/Materials -9/Materials -9/Mines -7/Zion -6/Proximity Caves History --------- Turn | Location | Event 1 | -11/Scrapyard | Discovered new exit (range 3) 6 | -11/Scrapyard | Entered Materials 190 | -10/Materials | Discovered new exit (range 11) 258 | -10/Materials | Entered another Materials area 258 | -9/Materials | Evolved 2 slots: Utility x2 560 | -9/Materials | Build established: Scavenger-Mutant 1109 | -9/Materials | Discovered new exit (range 5) 1115 | -9/Materials | Entered Mines 1131 | -9/Mines | Met a Derelict bent on vengeance 1299 | -9/Mines | A Derelict revealed a hidden shortcut to a safe place 1310 | -9/Mines | Entered Zion 1486 | -7/Zion | Found Prototype Device 1493 | -7/Zion | Identified Mobile Refinery Mk. CCLXVII 1688 | -7/Zion | Met Imprinter 1715 | -7/Zion | Imprinted 1717 | -7/Zion | Declared Zion's savior 2083 | -7/Zion | Found Prototype Energy Gun 2111 | -7/Zion | Given the Hacking Drone Bay 2112 | -7/Zion | Found Prototype Device 2113 | -7/Zion | Identified Hacking Drone Bay 2286 | -7/Zion | Build established: Derelict-Mutant 2319 | -7/Zion | Learned Factory emergency access door positions 2377 | -7/Zion | Received a visual enhancement algorithm 2378 | -7/Zion | Ran a visual enhancement algorithm 3542 | -7/Zion | Build established: Hacker-Mutant 4397 | -7/Zion | Found CR-A16's Pointy Stick 5114 | -7/Zion | Discovered new exit (range 12) 5161 | -7/Zion | Entered Proximity Caves 5161 | -6/Proximity Caves | Accompanied by 4 allies 5195 | -6/Proximity Caves | Attacked by a faux Warlord 5531 | -6/Proximity Caves | Build established: Derelict-Mutant 5616 | -6/Proximity Caves | Attracted the attention of an 0b10 outpost 5681 | -6/Proximity Caves | Core integrity fell below 50% 5739 | -6/Proximity Caves | Lost 5 parts (1p2n2w) 5758 | -6/Proximity Caves | Core integrity fell below 20% 5767 | -6/Proximity Caves | Destroyed by H-66 Slayer with Gauss Rifle Last Messages --------------- 05692_ Critical hit (Burn: +37). 05693_ Overheating: System interference. 05693_ 0b10 Decoder Chip [Scout] temporarily disabled. 05697_ Acquired 1 matter. 05697_ Carbon-fiber Leg destroyed. 05701_ Lgt. Antimatter Reactor fries itself beyond repair. 05701_ Plasma Rifle fries itself beyond repair. 05708_ Carbon-fiber Leg destroyed. 05709_ Adv. Heat Sink fries itself beyond repair. 05718_ Critical hit (Burn: +37). 05723_ G-50 Soldier destroyed. 05724_ Acquired 10 matter. 05726_ Acquired Carbon-fiber Leg. 05750_ 5M-1KV(M) destroyed. 05750_ Slug penetrates Wall. 05757_ Penetrated by Slug. 05760_ 0b10 Decoder Chip [Scout] destroyed. 05763_ Penetrated by Slug. 05763_ Carbon-fiber Leg destroyed. 05767_ Penetrated by Slug. Map ----- +----------------------------------------------------+ | ?# ### ### #??????????????????????? | | ?## #### #?## ##?????????????????????? | | ??## ## #??## ## #?????????????????????? | | ???# ##???##### #?????????????????????? | | #??# ##????????# #?????????????????????? | | ### ###???????# ##?????????????????????? | | ### ###?????###??????????????????????? | | ## #??????????????????????????????? | | # #??????????????????????????????? | | # #??????????????????????????????? | | ## ##??????????????????????????????? | | ?# #######???????????????????????????????? | | ?# ### #?????????????????????????????????????? | | ?## ??# #?????## ?????????????????????????????? | | ??###??# ##????## ?????????????????????????????? | | ??????## #?????# ????????????????????????????? | | ??????# #?????? ????????????????????????????? | | ??????# ##?????? #????###????????????????????? | | #?????# #??????? #?## #????????????????????? | | #?????### #???????? ## ?????????????????????? | | ##??????# #????????? ?????????????????????? | | ##?????# #?????????# #?????????????????????? | | ####### #####?????# ##????????????????????? | | ## #???## #????????????????????? | | # #### ##???????????????????? | | ############ h@ #???????????????????? | | ?????????#??# ## #????????????????? | | ?????????# ## #??? ????????????? | | ?????????# #????? ?????????? | | ? #???## #??????? ?????????? | | #??# #????????? ??????????? | | ##?# g #??????????? ??????????? | | ## ## m ###?????????????????????? | | #?????# #?????????????????????? | | ?? #?????## #?????????????????????? | | ???# ###????##### #?????????????????????? | | ???# ##???????## #?????????????????????? | | ??## ##???????##[ ##?????????????????????? | | ### ##???????#% ##??????????????????????? | | ## #########! ##???????????????????????? | | !%= %%"%#????????????????????????? | | ############????????????????????????? | | "" #???????????????????????????????????? | | " ##??????????????????????????????????? | | % #??????????????????????????????????? | | #?????????????????????????????????? | | #???????????????????????????????? | | #???????????????????????????????? | | # ## #???????????????????????????????? | | ## ##? #???????????????????????????????? | +----------------------------------------------------+ Best States ------------- Heat Dissipation 50 Energy Generation 16 Energy Capacity 290 Matter Stores 300 Matter Capacity 300 Sight Range 16 Terrain Scan Range 16 Terrain Scan Density 10 Armor Coverage 150 Utility Shielding 15 Evasion (%) 55 Offensive Hacking 10 Defensive Hacking 11 Item Schematics ----------------- Adv. Beam Cannon | -9/Materials | Scanalyzed Cooling System | -9/Materials | Extracted Weight Redist. System | -9/Materials | Extracted Imp. Proton Missile Launcher | -7/Zion | Archive Gauss Rifle | -7/Zion | Archive Imp. Deuterium Engine | -7/Zion | Archive Lgt. Fission Core | -7/Zion | Archive Mass Driver | -7/Zion | Archive Flexi-carbon Leg | -7/Zion | Archive Microactuators | -7/Zion | Archive Lyr. Medium Armor Plating | -7/Zion | Archive Adv. ECM Suite | -7/Zion | Archive Plasma Rifle | -7/Zion | Archive Xenon Bombardment Thruster | -7/Zion | Archive Enh. Optical Array | -7/Zion | Archive Imp. Titanium Leg | -7/Zion | Archive Imp. Shock Absorption System | -7/Zion | Archive Tiamat Missile Launcher | -7/Zion | Archive Robot Schematics ------------------ C-17 Slicer | -7/Zion | Archive A-02 Transporter | -7/Zion | Archive Fabricated ------------ Nothing Repaired ---------- Nothing Alien Tech Used ----------------- None Achievements -------------- None Challenges ------------ None Game ------ Seed PhasingTowerSpear Manual? 0 Play Time 00:43:15 Cumulative 114.8 hours Start 2025.06.19 @ 12:43:09 End 2025.06.19 @ 17:27:25 Sessions 2 Manual Loads 0 Difficulty Rogue Special Mode None Game No. 138 Rogue 123 Adventurer 15 Explorer 0 Win Type - Total 3 Types 2/0/1/0/0/0/0/0/0/0 Lore% 34 Gallery% 59 Achievement% 53 Wizard Run 0 Options --------- Layout 0 ASCII 0 Keyboard 0 Movement Mouse Keybinds 0 Fullscreen 2 Font 36/Smallcaps Map View 76x50 Zoom Use 0% Tactical HUD 1 Map Filters NONE Filters NONE Steam 1 RUN: 402cf253-d68c-4664-93df-f58a1eced55b